[Event "*** Titled Tuesday Blitz"]
[Site "Chess.com"]
[Date "2021.04.27"]
[Round "5"]
[White "SilviusTiberius"]
[Black "Alexsur1981"]
[Result "1-0"]
[WhiteElo "2621"]
[BlackElo "2850"]
[TimeControl "180+1"]
[EndTime "10:56:37 PDT"]
[Termination "SilviusTiberius won by checkmate"]

1. e4 {[%clk 0:02:55.4]} 1... c5 {[%clk 0:02:58.6]} 2. Nf3 {[%clk 0:02:52.9]}
2... e6 {[%clk 0:02:58.5]} 3. d4 {[%clk 0:02:52]} 3... cxd4 {[%clk 0:02:59.4]}
4. Nxd4 {[%clk 0:02:52.6]} 4... Nf6 {[%clk 0:02:59.7]} 5. Nc3 {[%clk 0:02:52.6]}
5... Nc6 {[%clk 0:02:59.9]} 6. Nxc6 {[%clk 0:02:52.7]} 6... bxc6 {[%clk
0:03:00.8]} 7. e5 {[%clk 0:02:53.6]} 7... Nd5 {[%clk 0:03:00.7]} 8. Ne4 {[%clk
0:02:54.1]} 8... Qc7 {[%clk 0:03:01.2]} 9. f4 {[%clk 0:02:53.6]} 9... Rb8 {[%clk
0:03:01.7]} 10. a3 {[%clk 0:02:53.3]} 10... Qb6 {[%clk 0:03:01.2]} 11. Bd3
{[%clk 0:02:45.9]} 11... Be7 {[%clk 0:02:57.1]} 12. Qe2 {[%clk 0:02:31.7]} 12...
f5 {[%clk 0:02:56]} 13. exf6 {[%clk 0:02:29.3]} 13... Nxf6 {[%clk 0:02:55.6]}
14. c4 {[%clk 0:02:24.2]} 14... Nxe4 {[%clk 0:02:48.6]} 15. Qxe4 {[%clk
0:02:17.4]} 15... Bf6 {[%clk 0:02:45.6]} 16. Rb1 {[%clk 0:02:04]} 16... d5
{[%clk 0:02:39.8]} 17. Qe2 {[%clk 0:02:00.8]} 17... O-O {[%clk 0:02:38.2]} 18.
Be3 {[%clk 0:01:36.5]} 18... Bd4 {[%clk 0:02:27.1]} 19. Bxh7+ {[%clk 0:01:33.7]}
19... Kxh7 {[%clk 0:02:21.3]} 20. Qd3+ {[%clk 0:01:33.5]} 20... Kg8 {[%clk
0:02:14.1]} 21. Bxd4 {[%clk 0:01:33.3]} 21... Qb3 {[%clk 0:02:13]} 22. Qg6
{[%clk 0:01:20.9]} 22... Rb7 {[%clk 0:02:05.1]} 23. O-O {[%clk 0:01:18.3]} 23...
Qxc4 {[%clk 0:02:02.7]} 24. Be5 {[%clk 0:01:14.5]} 24... c5 {[%clk 0:01:47]} 25.
Rbc1 {[%clk 0:01:10.9]} 25... Qe4 {[%clk 0:01:29.9]} 26. Qxe4 {[%clk 0:01:10.5]}
26... dxe4 {[%clk 0:01:30.8]} 27. Rxc5 {[%clk 0:01:10.9]} 27... Rd7 {[%clk
0:01:16.8]} 28. Re1 {[%clk 0:00:58.7]} 28... Bb7 {[%clk 0:01:16.6]} 29. Re3
{[%clk 0:00:44.9]} 29... Bd5 {[%clk 0:01:03.8]} 30. b4 {[%clk 0:00:41.8]} 30...
Kf7 {[%clk 0:00:57.4]} 31. Rg3 {[%clk 0:00:37.8]} 31... Rg8 {[%clk 0:00:57.4]}
32. Kf2 {[%clk 0:00:36.8]} 32... Rb7 {[%clk 0:00:51]} 33. Rgc3 {[%clk
0:00:36.6]} 33... g5 {[%clk 0:00:43.4]} 34. Rc7+ {[%clk 0:00:36.9]} 34... Rxc7
{[%clk 0:00:43.1]} 35. Rxc7+ {[%clk 0:00:37.8]} 35... Kg6 {[%clk 0:00:44]} 36.
fxg5 {[%clk 0:00:36]} 36... Kxg5 {[%clk 0:00:43.3]} 37. Rg7+ {[%clk 0:00:35.9]}
37... Rxg7 {[%clk 0:00:42.7]} 38. Bxg7 {[%clk 0:00:36.8]} 38... Kf4 {[%clk
0:00:42.6]} 39. Bd4 {[%clk 0:00:37]} 39... e5 {[%clk 0:00:41.8]} 40. h3 {[%clk
0:00:33.9]} 40... Kf5 {[%clk 0:00:42.7]} 41. g4+ {[%clk 0:00:33.1]} 41... Ke6
{[%clk 0:00:42.2]} 42. Bxa7 {[%clk 0:00:32.3]} 42... Bc6 {[%clk 0:00:42.3]} 43.
Be3 {[%clk 0:00:32.7]} 43... Kd5 {[%clk 0:00:39.3]} 44. h4 {[%clk 0:00:31.1]}
44... Kc4 {[%clk 0:00:37.2]} 45. h5 {[%clk 0:00:30.7]} 45... Be8 {[%clk
0:00:37.6]} 46. Bc1 {[%clk 0:00:17.7]} 46... Kd3 {[%clk 0:00:36.9]} 47. b5
{[%clk 0:00:17.1]} 47... Kc2 {[%clk 0:00:36.8]} 48. b6 {[%clk 0:00:16.7]} 48...
Kxc1 {[%clk 0:00:37]} 49. Ke3 {[%clk 0:00:17.1]} 49... Bc6 {[%clk 0:00:35.5]}
50. h6 {[%clk 0:00:17.1]} 50... Kb2 {[%clk 0:00:36.4]} 51. h7 {[%clk 0:00:17.2]}
51... Kxa3 {[%clk 0:00:37.3]} 52. h8=Q {[%clk 0:00:17.4]} 52... Kb4 {[%clk
0:00:38.2]} 53. Qxe5 {[%clk 0:00:17.7]} 53... Kc4 {[%clk 0:00:38.6]} 54. Qc7
{[%clk 0:00:17.6]} 54... Kb5 {[%clk 0:00:39.5]} 55. b7 {[%clk 0:00:17.8]} 55...
Bxb7 {[%clk 0:00:39.8]} 56. Qxb7+ {[%clk 0:00:18.1]} 56... Kc5 {[%clk
0:00:40.7]} 57. Qxe4 {[%clk 0:00:18.1]} 57... Kd6 {[%clk 0:00:41.6]} 58. g5
{[%clk 0:00:18.5]} 58... Kc7 {[%clk 0:00:41.5]} 59. g6 {[%clk 0:00:18.8]} 59...
Kd6 {[%clk 0:00:42.4]} 60. g7 {[%clk 0:00:19]} 60... Kd7 {[%clk 0:00:43.3]} 61.
g8=Q {[%clk 0:00:18.5]} 61... Kd6 {[%clk 0:00:44.2]} 62. Qgg6+ {[%clk
0:00:17.7]} 62... Kc7 {[%clk 0:00:45.1]} 63. Qe7+ {[%clk 0:00:17.4]} 63... Kb8
{[%clk 0:00:44.7]} 64. Qg8# {[%clk 0:00:17.2]} 1-0

[Event "*** Titled Tuesday Blitz"]
[Site "Chess.com"]
[Date "2021.04.27"]
[Round "5"]
[White "PavelShkapenko"]
[Black "ural58"]
[Result "1-0"]
[WhiteElo "2666"]
[BlackElo "2478"]
[TimeControl "180+1"]
[EndTime "10:56:38 PDT"]
[Termination "PavelShkapenko won by resignation"]

1. e4 {[%clk 0:02:24.4]} 1... d5 {[%clk 0:02:59.8]} 2. exd5 {[%clk 0:02:23.9]}
2... Qxd5 {[%clk 0:02:59.8]} 3. Nf3 {[%clk 0:02:24]} 3... Bg4 {[%clk 0:02:58.9]}
4. Be2 {[%clk 0:02:23.6]} 4... Nc6 {[%clk 0:02:58.3]} 5. h3 {[%clk 0:02:23.4]}
5... Bxf3 {[%clk 0:02:58.2]} 6. Bxf3 {[%clk 0:02:23.6]} 6... Qe6+ {[%clk
0:02:58.4]} 7. Qe2 {[%clk 0:02:23.9]} 7... Nd4 {[%clk 0:02:58.8]} 8. Qxe6 {[%clk
0:02:21.2]} 8... Nxf3+ {[%clk 0:02:59.3]} 9. gxf3 {[%clk 0:02:21.2]} 9... fxe6
{[%clk 0:03:00.2]} 10. d3 {[%clk 0:02:20.1]} 10... g6 {[%clk 0:03:00.4]} 11. Nd2
{[%clk 0:02:19.1]} 11... Bg7 {[%clk 0:02:59.2]} 12. Nc4 {[%clk 0:02:19.1]} 12...
Nh6 {[%clk 0:02:48.9]} 13. Bxh6 {[%clk 0:02:11.8]} 13... Bxh6 {[%clk 0:02:48.1]}
14. Kf1 {[%clk 0:02:08.3]} 14... O-O {[%clk 0:02:46.3]} 15. Kg2 {[%clk
0:02:08.5]} 15... Bf4 {[%clk 0:02:42.9]} 16. Rae1 {[%clk 0:02:05.1]} 16... Rf6
{[%clk 0:02:39.4]} 17. Re4 {[%clk 0:02:04.7]} 17... Kf7 {[%clk 0:02:38.5]} 18.
Rhe1 {[%clk 0:01:58.1]} 18... Rd8 {[%clk 0:02:37.5]} 19. Na5 {[%clk 0:01:57.5]}
19... Rb8 {[%clk 0:02:21.6]} 20. R1e2 {[%clk 0:01:49.3]} 20... c6 {[%clk
0:02:20.8]} 21. Rb4 {[%clk 0:01:47.8]} 21... Rf5 {[%clk 0:01:53]} 22. Nxb7
{[%clk 0:01:18.5]} 22... a5 {[%clk 0:01:50.6]} 23. Rb3 {[%clk 0:01:18.5]} 23...
a4 {[%clk 0:01:42.3]} 24. Rb4 {[%clk 0:01:18.7]} 24... Bc7 {[%clk 0:01:18.4]}
25. a3 {[%clk 0:01:09]} 25... Rg5+ {[%clk 0:01:12.3]} 26. Kf1 {[%clk 0:01:06.9]}
26... Rh5 {[%clk 0:01:10.3]} 27. h4 {[%clk 0:00:51.2]} 27... c5 {[%clk
0:01:02.8]} 28. Rb5 {[%clk 0:00:50.7]} 28... Rxh4 {[%clk 0:01:00.4]} 29. c4
{[%clk 0:00:44.1]} 29... Rh5 {[%clk 0:00:50.6]} 30. f4 {[%clk 0:00:34.2]} 30...
Rf5 {[%clk 0:00:49.5]} 31. Re4 {[%clk 0:00:32.5]} 31... Bxf4 {[%clk 0:00:47.8]}
32. Na5 {[%clk 0:00:31.8]} 32... Rxb5 {[%clk 0:00:46.9]} 33. cxb5 {[%clk
0:00:32.1]} 33... Bg3 {[%clk 0:00:38.1]} 34. b6 {[%clk 0:00:30.1]} 34... Rxf2+
{[%clk 0:00:36.4]} 35. Kg1 {[%clk 0:00:30.3]} 35... Rxb2 {[%clk 0:00:36]} 36.
Nc4 {[%clk 0:00:30]} 36... Rb3 {[%clk 0:00:30.3]} 37. Re3 {[%clk 0:00:29.3]}
37... Bf4 {[%clk 0:00:20.6]} 38. Rf3 {[%clk 0:00:26.6]} 38... g5 {[%clk
0:00:21.1]} 39. Kf2 {[%clk 0:00:24.4]} 39... Kg6 {[%clk 0:00:19]} 40. d4 {[%clk
0:00:22.4]} 40... cxd4 {[%clk 0:00:16.3]} 41. Rxb3 {[%clk 0:00:20.8]} 41... axb3
{[%clk 0:00:17.2]} 42. a4 {[%clk 0:00:21.4]} 42... d3 {[%clk 0:00:15.9]} 43. a5
{[%clk 0:00:21.3]} 43... g4 {[%clk 0:00:12.3]} 44. a6 {[%clk 0:00:21.2]} 44...
g3+ {[%clk 0:00:12.6]} 45. Kf3 {[%clk 0:00:21.4]} 45... d2 {[%clk 0:00:12.2]}
46. Nxd2 {[%clk 0:00:20.8]} 46... Bxd2 {[%clk 0:00:12.1]} 47. b7 {[%clk
0:00:20.4]} 47... Bf4 {[%clk 0:00:10.8]} 48. Kxf4 {[%clk 0:00:20]} 48... g2
{[%clk 0:00:10.3]} 49. b8=Q {[%clk 0:00:19.7]} 49... g1=Q {[%clk 0:00:11.2]} 50.
Qg8+ {[%clk 0:00:19.7]} 50... Kf6 {[%clk 0:00:11.4]} 51. Qxg1 {[%clk 0:00:19.6]}
1-0

[Event "*** Titled Tuesday Blitz"]
[Site "Chess.com"]
[Date "2021.04.27"]
[Round "5"]
[White "Vladyslav_Puchka"]
[Black "KaspMagAlpha"]
[Result "1-0"]
[WhiteElo "2112"]
[BlackElo "2220"]
[TimeControl "180+1"]
[EndTime "10:56:41 PDT"]
[Termination "Vladyslav_Puchka won by checkmate"]

1. d4 {[%clk 0:03:00.9]} 1... Nf6 {[%clk 0:02:59]} 2. c4 {[%clk 0:02:58.6]} 2...
e6 {[%clk 0:02:58.9]} 3. Nf3 {[%clk 0:02:57]} 3... Bb4+ {[%clk 0:02:55.7]} 4.
Bd2 {[%clk 0:02:54.5]} 4... c5 {[%clk 0:02:55.4]} 5. Bxb4 {[%clk 0:02:50.9]}
5... cxb4 {[%clk 0:02:55.1]} 6. e3 {[%clk 0:02:51]} 6... Kf8 {[%clk 0:02:54.6]}
7. Qb3 {[%clk 0:02:48.8]} 7... a5 {[%clk 0:02:53.7]} 8. a3 {[%clk 0:02:48.6]}
8... bxa3 {[%clk 0:02:53.3]} 9. Nxa3 {[%clk 0:02:47.2]} 9... g6 {[%clk
0:02:51.8]} 10. Be2 {[%clk 0:02:46.7]} 10... Kg7 {[%clk 0:02:51.6]} 11. O-O
{[%clk 0:02:46.5]} 11... d6 {[%clk 0:02:50.1]} 12. Nb5 {[%clk 0:02:41.9]} 12...
Re8 {[%clk 0:02:46.9]} 13. Rfc1 {[%clk 0:02:38.8]} 13... Na6 {[%clk 0:02:46.3]}
14. Nd2 {[%clk 0:02:20.3]} 14... Nb4 {[%clk 0:02:44.9]} 15. Bf3 {[%clk
0:02:17.1]} 15... Ra6 {[%clk 0:02:44]} 16. c5 {[%clk 0:02:06.4]} 16... dxc5
{[%clk 0:02:41.8]} 17. Rxc5 {[%clk 0:02:03.9]} 17... Nd7 {[%clk 0:02:34.7]} 18.
Rc3 {[%clk 0:01:43.7]} 18... Nb6 {[%clk 0:02:33.8]} 19. Nc7 {[%clk 0:01:40.5]}
19... N6d5 {[%clk 0:02:33.1]} 20. Nxe8+ {[%clk 0:01:34.4]} 20... Qxe8 {[%clk
0:02:21.5]} 21. Bxd5 {[%clk 0:01:33]} 21... exd5 {[%clk 0:02:16.9]} 22. Rc5
{[%clk 0:01:30.4]} 22... b6 {[%clk 0:02:11]} 23. Rc7 {[%clk 0:01:21.1]} 23...
Bd7 {[%clk 0:02:08.3]} 24. Rac1 {[%clk 0:01:18.2]} 24... Ba4 {[%clk 0:02:06.7]}
25. Qa3 {[%clk 0:00:59.8]} 25... Ra8 {[%clk 0:02:03.4]} 26. Nf3 {[%clk
0:00:51.7]} 26... Bb5 {[%clk 0:02:01.5]} 27. Ne5 {[%clk 0:00:48]} 27... Qe6
{[%clk 0:01:45.7]} 28. Rxf7+ {[%clk 0:00:35.6]} 28... Kg8 {[%clk 0:01:45.6]} 29.
Rcc7 {[%clk 0:00:31]} 29... Be8 {[%clk 0:01:24.7]} 30. Rg7+ {[%clk 0:00:27.4]}
30... Kf8 {[%clk 0:01:24.6]} 31. Rxh7 {[%clk 0:00:20.6]} 31... Kg8 {[%clk
0:01:23.1]} 32. Rhg7+ {[%clk 0:00:18.5]} 32... Kf8 {[%clk 0:01:23]} 33. Qc3
{[%clk 0:00:15.8]} 33... Qf5 {[%clk 0:01:18.6]} 34. h3 {[%clk 0:00:13.3]} 34...
Rd8 {[%clk 0:01:14.9]} 35. g4 {[%clk 0:00:08.5]} 35... Qf6 {[%clk 0:01:11.8]}
36. Kg2 {[%clk 0:00:08.2]} 36... Rd6 {[%clk 0:01:07.3]} 37. Rh7 {[%clk
0:00:07.5]} 37... Kg8 {[%clk 0:01:06.5]} 38. Rhg7+ {[%clk 0:00:07.1]} 38... Qxg7
{[%clk 0:01:05.8]} 39. Rxg7+ {[%clk 0:00:06.8]} 39... Kxg7 {[%clk 0:01:06]} 40.
Qc7+ {[%clk 0:00:07]} 40... Rd7 {[%clk 0:00:55.1]} 41. Nxd7 {[%clk 0:00:07]}
41... Bxd7 {[%clk 0:00:53.1]} 42. Qxd7+ {[%clk 0:00:07.4]} 42... Kh8 {[%clk
0:00:49.1]} 43. Qd8+ {[%clk 0:00:06.4]} 43... Kg7 {[%clk 0:00:49]} 44. Qxb6
{[%clk 0:00:07]} 44... Kh6 {[%clk 0:00:46.1]} 45. Qxa5 {[%clk 0:00:07.1]} 45...
Nd3 {[%clk 0:00:45.5]} 46. Qxd5 {[%clk 0:00:06.7]} 46... Ne1+ {[%clk 0:00:45.5]}
47. Kf1 {[%clk 0:00:06.6]} 47... Nd3 {[%clk 0:00:44.8]} 48. b3 {[%clk 0:00:05]}
48... Nb4 {[%clk 0:00:43.7]} 49. Qc4 {[%clk 0:00:05.2]} 49... Na2 {[%clk
0:00:41.5]} 50. b4 {[%clk 0:00:04.4]} 50... Nxb4 {[%clk 0:00:39.6]} 51. Qxb4
{[%clk 0:00:04.7]} 51... Kg5 {[%clk 0:00:39.9]} 52. Qc5+ {[%clk 0:00:04.8]}
52... Kh4 {[%clk 0:00:40.1]} 53. Qe5 {[%clk 0:00:04.7]} 53... g5 {[%clk
0:00:28.8]} 54. Qg3# {[%clk 0:00:04.2]} 1-0

[Event "*** Titled Tuesday Blitz"]
[Site "Chess.com"]
[Date "2021.04.27"]
[Round "5"]
[White "Elshan1985"]
[Black "Iball95"]
[Result "1-0"]
[WhiteElo "2889"]
[BlackElo "2619"]
[TimeControl "180+1"]
[EndTime "10:56:42 PDT"]
[Termination "Elshan1985 won on time"]

1. Nf3 {[%clk 0:03:00.9]} 1... g6 {[%clk 0:02:58.8]} 2. e3 {[%clk 0:03:01.7]}
2... Bg7 {[%clk 0:02:58.6]} 3. d4 {[%clk 0:03:02.4]} 3... Nf6 {[%clk 0:02:58.2]}
4. c4 {[%clk 0:03:03]} 4... O-O {[%clk 0:02:58]} 5. Nc3 {[%clk 0:03:03.6]} 5...
c5 {[%clk 0:02:51.6]} 6. d5 {[%clk 0:03:03.1]} 6... e6 {[%clk 0:02:51.4]} 7. Be2
{[%clk 0:03:02.4]} 7... exd5 {[%clk 0:02:51.3]} 8. cxd5 {[%clk 0:03:03.3]} 8...
d6 {[%clk 0:02:51.7]} 9. O-O {[%clk 0:03:02.9]} 9... Bg4 {[%clk 0:02:51.1]} 10.
a4 {[%clk 0:03:00.1]} 10... Nbd7 {[%clk 0:02:50.6]} 11. h3 {[%clk 0:02:56.8]}
11... Bxf3 {[%clk 0:02:50.4]} 12. Bxf3 {[%clk 0:02:57.7]} 12... a6 {[%clk
0:02:45.3]} 13. a5 {[%clk 0:02:57.5]} 13... Rc8 {[%clk 0:02:44.7]} 14. Bd2
{[%clk 0:02:51.4]} 14... c4 {[%clk 0:02:42]} 15. Be2 {[%clk 0:02:50.5]} 15...
Re8 {[%clk 0:02:39.6]} 16. Ra4 {[%clk 0:02:49.6]} 16... Rc5 {[%clk 0:02:19.9]}
17. Rxc4 {[%clk 0:02:24.2]} 17... Rxc4 {[%clk 0:02:18.7]} 18. Bxc4 {[%clk
0:02:23.8]} 18... Qxa5 {[%clk 0:02:19]} 19. Re1 {[%clk 0:02:08.8]} 19... Qc5
{[%clk 0:02:09.4]} 20. Ba2 {[%clk 0:02:05.7]} 20... Nb6 {[%clk 0:02:03.1]} 21.
e4 {[%clk 0:02:05.2]} 21... Nc4 {[%clk 0:02:00.4]} 22. Bc1 {[%clk 0:02:05]}
22... b5 {[%clk 0:01:56.2]} 23. Qd3 {[%clk 0:01:59.6]} 23... Rc8 {[%clk
0:01:51.6]} 24. Qf3 {[%clk 0:01:33.3]} 24... Nd7 {[%clk 0:01:43.8]} 25. Bxc4
{[%clk 0:01:26.3]} 25... Qxc4 {[%clk 0:01:41.4]} 26. Bf4 {[%clk 0:01:19.3]}
26... b4 {[%clk 0:01:26.3]} 27. Na4 {[%clk 0:01:11]} 27... Ne5 {[%clk
0:01:05.7]} 28. Bxe5 {[%clk 0:01:07.8]} 28... Bxe5 {[%clk 0:01:06.6]} 29. Nb6
{[%clk 0:01:03]} 29... Qc1 {[%clk 0:00:58.5]} 30. Kf1 {[%clk 0:00:50.5]} 30...
Qc7 {[%clk 0:00:31.8]} 31. Nxc8 {[%clk 0:00:50.7]} 31... Qxc8 {[%clk 0:00:32.7]}
32. b3 {[%clk 0:00:51.4]} 32... a5 {[%clk 0:00:30]} 33. Qd3 {[%clk 0:00:47.5]}
33... Qc5 {[%clk 0:00:18.9]} 34. g3 {[%clk 0:00:45.6]} 34... h5 {[%clk
0:00:18.8]} 35. Kg2 {[%clk 0:00:45.1]} 35... h4 {[%clk 0:00:18.1]} 36. gxh4
{[%clk 0:00:44.8]} 36... Bc3 {[%clk 0:00:17.7]} 37. Re3 {[%clk 0:00:41.3]} 37...
Kg7 {[%clk 0:00:16.9]} 38. Rg3 {[%clk 0:00:40.9]} 38... Be5 {[%clk 0:00:16.5]}
39. Rg5 {[%clk 0:00:39.2]} 39... a4 {[%clk 0:00:11.7]} 40. bxa4 {[%clk
0:00:38.7]} 40... Bc3 {[%clk 0:00:11.2]} 41. h5 {[%clk 0:00:36.1]} 41... b3
{[%clk 0:00:06.5]} 42. hxg6 {[%clk 0:00:34.2]} 42... b2 {[%clk 0:00:04.8]} 43.
e5 {[%clk 0:00:23.4]} 43... Bxe5 {[%clk 0:00:03.6]} 44. gxf7+ {[%clk 0:00:23.7]}
44... Kxf7 {[%clk 0:00:04]} 45. Qg6+ {[%clk 0:00:23]} 45... Ke7 {[%clk
0:00:02.5]} 46. Qe6+ {[%clk 0:00:22.8]} 46... Kd8 {[%clk 0:00:02]} 47. Rg8+
{[%clk 0:00:23]} 47... Kc7 {[%clk 0:00:02.9]} 48. Rc8+ {[%clk 0:00:22.2]} 48...
Kb6 {[%clk 0:00:01.8]} 49. Rxc5 {[%clk 0:00:22.5]} 49... Kxc5 {[%clk 0:00:01]}
50. Qf5 {[%clk 0:00:22]} 1-0

[Event "*** Titled Tuesday Blitz"]
[Site "Chess.com"]
[Date "2021.04.27"]
[Round "5"]
[White "German_Bazeev"]
[Black "nocnypako"]
[Result "1-0"]
[WhiteElo "2787"]
[BlackElo "2546"]
[TimeControl "180+1"]
[EndTime "10:56:42 PDT"]
[Termination "German_Bazeev won by checkmate"]

1. d4 {[%clk 0:02:52.6]} 1... Nf6 {[%clk 0:01:59.5]} 2. Nf3 {[%clk 0:02:46.9]}
2... g6 {[%clk 0:01:59.4]} 3. c4 {[%clk 0:02:44]} 3... Bg7 {[%clk 0:01:59.6]} 4.
Nc3 {[%clk 0:02:44.7]} 4... d5 {[%clk 0:01:59]} 5. cxd5 {[%clk 0:02:45.6]} 5...
Nxd5 {[%clk 0:01:58.6]} 6. Qa4+ {[%clk 0:02:46.3]} 6... Nc6 {[%clk 0:01:43.9]}
7. e4 {[%clk 0:02:44.6]} 7... Nxc3 {[%clk 0:01:42.7]} 8. bxc3 {[%clk 0:02:43.4]}
8... O-O {[%clk 0:01:42.5]} 9. Bg5 {[%clk 0:02:36.1]} 9... h6 {[%clk 0:01:39.4]}
10. Bh4 {[%clk 0:02:35.6]} 10... Qd7 {[%clk 0:01:37.6]} 11. Qa3 {[%clk
0:02:33.7]} 11... g5 {[%clk 0:00:51.5]} 12. Bg3 {[%clk 0:02:31.1]} 12... e5
{[%clk 0:00:51.8]} 13. d5 {[%clk 0:02:21.4]} 13... Nd8 {[%clk 0:00:50.5]} 14.
Be2 {[%clk 0:02:03]} 14... f6 {[%clk 0:00:48.7]} 15. c4 {[%clk 0:02:01.5]} 15...
b6 {[%clk 0:00:47.2]} 16. c5 {[%clk 0:02:00.1]} 16... bxc5 {[%clk 0:00:44.8]}
17. O-O {[%clk 0:02:00.8]} 17... Nb7 {[%clk 0:00:43.4]} 18. Nd2 {[%clk
0:01:57.9]} 18... Nd6 {[%clk 0:00:41.8]} 19. Qxc5 {[%clk 0:01:56.6]} 19... f5
{[%clk 0:00:39.9]} 20. f3 {[%clk 0:01:56.4]} 20... g4 {[%clk 0:00:27.7]} 21.
fxg4 {[%clk 0:01:45.4]} 21... f4 {[%clk 0:00:23.8]} 22. Bh4 {[%clk 0:01:34.8]}
22... Bb7 {[%clk 0:00:23.1]} 23. Bf3 {[%clk 0:01:26.4]} 23... Rfc8 {[%clk
0:00:21.9]} 24. Rfd1 {[%clk 0:01:10.4]} 24... c6 {[%clk 0:00:21.6]} 25. dxc6
{[%clk 0:01:09.3]} 25... Rxc6 {[%clk 0:00:22.5]} 26. Qa5 {[%clk 0:00:50.4]}
26... Qc7 {[%clk 0:00:20.7]} 27. Qxc7 {[%clk 0:00:46.7]} 27... Rxc7 {[%clk
0:00:21.6]} 28. Bf2 {[%clk 0:00:43.1]} 28... a6 {[%clk 0:00:19.6]} 29. Rab1
{[%clk 0:00:34.5]} 29... Rac8 {[%clk 0:00:19.2]} 30. Rb6 {[%clk 0:00:34.2]}
30... Nb5 {[%clk 0:00:14.4]} 31. a4 {[%clk 0:00:23]} 31... Nc3 {[%clk
0:00:14.4]} 32. Re1 {[%clk 0:00:23.6]} 32... Nxa4 {[%clk 0:00:13.9]} 33. Rd6
{[%clk 0:00:12.9]} 33... Nc3 {[%clk 0:00:13.6]} 34. Nb3 {[%clk 0:00:11.9]} 34...
Rc6 {[%clk 0:00:11.8]} 35. Rd7 {[%clk 0:00:11.9]} 35... R8c7 {[%clk 0:00:11.6]}
36. Rd8+ {[%clk 0:00:11.8]} 36... Kh7 {[%clk 0:00:11.3]} 37. Na5 {[%clk
0:00:12.3]} 37... Re6 {[%clk 0:00:09.2]} 38. Nxb7 {[%clk 0:00:09.9]} 38... Rxb7
{[%clk 0:00:09]} 39. h4 {[%clk 0:00:10.7]} 39... Rb4 {[%clk 0:00:06.7]} 40. g5
{[%clk 0:00:10.7]} 40... hxg5 {[%clk 0:00:06.5]} 41. hxg5 {[%clk 0:00:11.6]}
41... Rg6 {[%clk 0:00:06.2]} 42. Bg4 {[%clk 0:00:10]} 42... Rxg5 {[%clk
0:00:06.1]} 43. Bf5+ {[%clk 0:00:10.7]} 43... Kh6 {[%clk 0:00:06.4]} 44. Rd6+
{[%clk 0:00:11.3]} 44... Kh5 {[%clk 0:00:05.8]} 45. Rd3 {[%clk 0:00:07]} 45...
Rb3 {[%clk 0:00:05.1]} 46. Rh3# {[%clk 0:00:06.9]} 1-0

[Event "*** Titled Tuesday Blitz"]
[Site "Chess.com"]
[Date "2021.04.27"]
[Round "5"]
[White "AsaHoffmann"]
[Black "Ind1anStar"]
[Result "1-0"]
[WhiteElo "2369"]
[BlackElo "2506"]
[TimeControl "180+1"]
[EndTime "10:56:43 PDT"]
[Termination "AsaHoffmann won by resignation"]

1. d4 {[%clk 0:02:57.9]} 1... d5 {[%clk 0:03:00.1]} 2. Bg5 {[%clk 0:02:57.1]}
2... h6 {[%clk 0:02:59]} 3. Bh4 {[%clk 0:02:56.6]} 3... c5 {[%clk 0:02:58.6]} 4.
e3 {[%clk 0:02:56.3]} 4... Nf6 {[%clk 0:02:57.8]} 5. Nd2 {[%clk 0:02:55.5]} 5...
Nc6 {[%clk 0:02:57.3]} 6. c3 {[%clk 0:02:55.3]} 6... e6 {[%clk 0:02:53.5]} 7. f4
{[%clk 0:02:54.5]} 7... Be7 {[%clk 0:02:53.4]} 8. Ngf3 {[%clk 0:02:54.4]} 8...
Ne4 {[%clk 0:02:53.5]} 9. Bxe7 {[%clk 0:02:53.1]} 9... Qxe7 {[%clk 0:02:53.7]}
10. Nxe4 {[%clk 0:02:52.7]} 10... dxe4 {[%clk 0:02:52.4]} 11. Ne5 {[%clk
0:02:52.1]} 11... Nxe5 {[%clk 0:02:51.5]} 12. fxe5 {[%clk 0:02:51.9]} 12... Qg5
{[%clk 0:02:50.5]} 13. Bb5+ {[%clk 0:02:45]} 13... Ke7 {[%clk 0:02:50.6]} 14.
Qe2 {[%clk 0:02:44]} 14... Rd8 {[%clk 0:02:48.3]} 15. O-O {[%clk 0:02:40.4]}
15... f6 {[%clk 0:02:44.8]} 16. exf6+ {[%clk 0:02:30.7]} 16... gxf6 {[%clk
0:02:45.7]} 17. Rf4 {[%clk 0:02:25.8]} 17... cxd4 {[%clk 0:02:38.3]} 18. cxd4
{[%clk 0:02:23.9]} 18... Rxd4 {[%clk 0:02:36.2]} 19. Raf1 {[%clk 0:02:13.2]}
19... Rd5 {[%clk 0:02:01.4]} 20. Bc4 {[%clk 0:01:50.5]} 20... Rc5 {[%clk
0:01:53.9]} 21. Rg4 {[%clk 0:01:34.9]} 21... Qe5 {[%clk 0:01:42.7]} 22. Rg7+
{[%clk 0:01:24.5]} 22... Kf8 {[%clk 0:01:42.3]} 23. Qg4 {[%clk 0:01:03.8]} 23...
f5 {[%clk 0:01:26.3]} 24. Rg8+ {[%clk 0:00:54.1]} 24... Ke7 {[%clk 0:01:25.8]}
25. Qh4+ {[%clk 0:00:48.3]} 25... Kd6 {[%clk 0:01:13.8]} 26. b3 {[%clk
0:00:45.8]} 26... Kc6 {[%clk 0:01:06.8]} 27. Qd8 {[%clk 0:00:36.6]} 27... Qc7
{[%clk 0:00:45.3]} 28. Qd4 {[%clk 0:00:34.7]} 28... Qd7 {[%clk 0:00:30.3]} 29.
Qf6 {[%clk 0:00:29.4]} 29... b5 {[%clk 0:00:23.1]} 30. Bxe6 {[%clk 0:00:16.6]}
30... Qxe6 {[%clk 0:00:18.3]} 31. Qxe6+ {[%clk 0:00:16.5]} 31... Bxe6 {[%clk
0:00:18.6]} 32. Rxa8 {[%clk 0:00:16.2]} 32... Rc2 {[%clk 0:00:19.2]} 33. Rxa7
{[%clk 0:00:15.3]} 33... Kb6 {[%clk 0:00:19.8]} 34. Re7 {[%clk 0:00:14.4]} 34...
Bd5 {[%clk 0:00:20.3]} 35. Rd1 {[%clk 0:00:13.4]} 35... Bc6 {[%clk 0:00:19.9]}
36. Re6 {[%clk 0:00:13.1]} 36... Rxa2 {[%clk 0:00:20.1]} 37. Rdd6 {[%clk
0:00:12]} 37... Rc2 {[%clk 0:00:20.3]} 38. b4 {[%clk 0:00:11.9]} 38... Kc7
{[%clk 0:00:17.7]} 39. Rxh6 {[%clk 0:00:09.9]} 39... Rc4 {[%clk 0:00:17.6]} 40.
Rxc6+ {[%clk 0:00:09.3]} 40... Rxc6 {[%clk 0:00:17.6]} 41. Rxc6+ {[%clk
0:00:09]} 41... Kxc6 {[%clk 0:00:18.5]} 42. h4 {[%clk 0:00:09]} 42... Kd5 {[%clk
0:00:19.4]} 43. Kf2 {[%clk 0:00:08.9]} 43... Kc4 {[%clk 0:00:20.3]} 44. h5
{[%clk 0:00:08.9]} 44... Kxb4 {[%clk 0:00:21.2]} 45. h6 {[%clk 0:00:09.1]} 45...
Ka3 {[%clk 0:00:20.1]} 46. h7 {[%clk 0:00:09.1]} 46... b4 {[%clk 0:00:21]} 47.
h8=Q {[%clk 0:00:08.4]} 47... b3 {[%clk 0:00:21.9]} 48. Kg3 {[%clk 0:00:07.6]}
48... b2 {[%clk 0:00:21.9]} 49. Qxb2+ {[%clk 0:00:07.2]} 49... Kxb2 {[%clk
0:00:22.3]} 50. Kf4 {[%clk 0:00:07.3]} 50... Kc3 {[%clk 0:00:23.1]} 51. Kxf5
{[%clk 0:00:07.2]} 51... Kd3 {[%clk 0:00:23.6]} 52. Kf4 {[%clk 0:00:07.4]} 52...
Ke2 {[%clk 0:00:24.1]} 53. Kxe4 {[%clk 0:00:07.5]} 53... Kf2 {[%clk 0:00:23.9]}
54. g4 {[%clk 0:00:07.5]} 1-0